bitfinex/quotes_BTCUSD_20250324
["timestamp","ask_amount","ask_price","bid_price","bid_amount"]
[1742839880763,0.00832121,88410.0,88407.0,0.226221]
[1742839881506,0.00832121,88410.0,88408.0,0.226223]
[1742839882113,0.01032121,88410.0,88408.0,0.226223]
[1742839882439,0.23454021,88410.0,88407.0,0.226221]
[1742839882655,0.23454021,88410.0,88408.0,0.226223]
[1742839882875,0.01032121,88410.0,88408.0,0.226223]
[1742839883127,0.01132121,88410.0,88408.0,0.226223]
[1742839883547,0.01132121,88410.0,88409.0,0.226221]
[1742839884212,0.01032121,88410.0,88409.0,0.226221]
[1742839884474,0.00832121,88410.0,88408.0,0.226223]
[1742839884720,0.0342362,88410.0,88407.0,0.226226]
[1742839884920,0.0362362,88410.0,88407.0,0.226226]
[1742839885623,0.0362362,88410.0,88408.0,0.226223]
[1742839885861,0.00932121,88410.0,88408.0,0.226223]
[1742839886062,0.01032121,88410.0,88408.0,0.226223]
[1742839886303,0.01132121,88410.0,88408.0,0.226223]
[1742839886781,0.01032121,88410.0,88408.0,0.226223]
[1742839887250,0.01132121,88410.0,88409.0,0.226221]
[1742839887508,0.01132121,88410.0,88409.0,0.357781]
[1742839887765,0.00932121,88410.0,88409.0,0.56114964]
[1742839887969,0.003,88410.0,88409.0,0.59650293]
[1742839888147,0.001,88410.0,88409.0,0.59650293]
[1742839888573,6e-07,88411.0,88410.0,0.365228]
[1742839888776,2e-07,88412.0,88411.0,0.33306685]
[1742839888902,2e-07,88422.0,88421.0,0.362299]
[1742839889103,2e-07,88422.0,88421.0,1.05010993]
[1742839890239,2e-07,88422.0,88421.0,1.05210993]
[1742839890444,2e-07,88422.0,88421.0,1.01675664]
[1742839893669,2e-07,88422.0,88421.0,1.14827664]
[1742839897953,2e-07,88422.0,88421.0,1.14844634]
[1742839902543,2e-07,88422.0,88421.0,1.15344634]
[1742839902745,2e-07,88422.0,88421.0,1.46798719]
[1742839903075,2e-07,88422.0,88421.0,1.49298719]
[1742839903280,2e-07,88422.0,88421.0,1.49098719]
[1742839903676,2e-07,88422.0,88421.0,1.49398719]
[1742839904539,2e-07,88422.0,88421.0,1.49598719]
[1742839904947,2e-07,88422.0,88421.0,1.49098719]
[1742839905341,2e-07,88422.0,88421.0,1.49598719]
[1742839905860,2e-07,88422.0,88421.0,1.50098719]
[1742839909743,6e-07,88422.0,88421.0,1.50098719]
[1742839911250,6e-07,88422.0,88421.0,1.36946719]
[1742839911450,6e-07,88422.0,88421.0,0.90012634]
[1742839911654,6e-07,88422.0,88421.0,1.03156634]
[1742839911854,6e-07,88422.0,88421.0,1.12700719]
[1742839912291,6e-07,88422.0,88421.0,1.45200719]
[1742839912494,6e-07,88422.0,88421.0,1.49890719]
[1742839914249,6e-07,88422.0,88421.0,1.48759819]
[1742839915339,6e-07,88422.0,88421.0,1.49890719]
[1742839916712,6e-07,88422.0,88421.0,1.53400575]
[1742839921821,6e-07,88422.0,88421.0,1.50900575]
[1742839922051,6e-07,88422.0,88421.0,1.53400575]
[1742839923182,6e-07,88422.0,88421.0,1.52900575]
[1742839926046,6e-07,88422.0,88421.0,1.50400575]
[1742839926246,6e-07,88422.0,88421.0,1.52900575]
[1742839930025,6e-07,88422.0,88421.0,1.48210575]
[1742839931364,6e-07,88422.0,88421.0,1.40620575]
[1742839931572,6e-07,88422.0,88421.0,1.47143355]
[1742839931775,6e-07,88422.0,88421.0,1.40620575]
[1742839932208,6e-07,88422.0,88421.0,1.27476575]
[1742839932408,6e-07,88422.0,88421.0,1.40612575]
[1742839940779,6e-07,88422.0,88421.0,1.64112575]
[1742839946860,6e-07,88422.0,88421.0,1.6215449]
[1742839947742,0.0003398,88459.0,88446.0,0.011306]
[1742839947951,0.0003398,88459.0,88458.0,0.2374]
[1742839948156,0.0003398,88459.0,88458.0,0.35165764]
[1742839948360,0.0003398,88459.0,88458.0,0.38697868]
[1742839948619,0.0003398,88459.0,88458.0,0.39821851]
[1742839949005,0.0017498,88459.0,88458.0,0.40657531]
[1742839949213,0.0027498,88459.0,88458.0,0.37125427]
[1742839949540,0.0007498,88459.0,88458.0,0.37125427]
[1742839949751,0.0007498,88459.0,88458.0,0.37325427]
[1742839950782,0.1303498,88459.0,88458.0,0.37325427]
[1742839951620,0.1303498,88459.0,88458.0,0.37625427]
[1742839962701,0.1303498,88459.0,88458.0,0.50749427]
[1742839967091,0.0486498,88459.0,88458.0,0.50749427]
[1742839967569,0.0007498,88459.0,88458.0,0.50749427]
[1742839968287,0.0007498,88459.0,88458.0,1.04525427]
[1742839971804,0.0007498,88459.0,88458.0,1.08550052]
[1742839972805,0.0007498,88459.0,88458.0,1.08250052]
[1742839973139,0.0007498,88459.0,88458.0,1.08850052]
[1742839973988,0.0007498,88459.0,88458.0,1.08650052]
[1742839974288,0.0007498,88459.0,88458.0,1.09150052]
[1742839975959,0.0007498,88459.0,88458.0,1.193168]
[1742839976708,0.0007498,88459.0,88458.0,1.188128]
[1742839988606,0.0007498,88459.0,88458.0,1.08646052]
[1742839989379,0.0007498,88459.0,88458.0,0.95526052]
[1742839989567,0.0007498,88459.0,88458.0,1.08642052]
[1742839992066,0.0007498,88459.0,88458.0,0.95526052]
[1742839992264,0.0007498,88459.0,88458.0,1.08642052]
[1742839995312,8e-07,88459.0,88458.0,1.08642052]
[1742839995519,0.0003398,88478.0,88477.0,0.011302]
[1742839995763,8.6e-07,88478.0,88477.0,1.12592661]
[1742839995960,0.00860251,88478.0,88477.0,1.15893098]
[1742839996170,0.1236396,88501.0,88489.0,0.237316]
[1742839996372,0.00045591,88490.0,88489.0,0.38683798]
[1742839996546,0.00045591,88490.0,88489.0,0.42778198]
[1742839997023,9.1e-07,88490.0,88489.0,0.42778198]
[1742839997231,9.1e-07,88490.0,88489.0,0.72778198]
[1742839997439,1.1e-07,88501.0,88500.0,0.011299]
[1742839997682,1.1e-07,88501.0,88500.0,1.06688014]
[1742839997894,1.1e-07,88501.0,88500.0,1.08890478]
[1742839998305,1.1e-07,88501.0,88500.0,1.05364044]
[1742839999051,1.1e-07,88501.0,88500.0,1.05664044]
[1742840000555,1.1e-07,88501.0,88500.0,1.06164044]
[1742840000780,1.1e-07,88501.0,88500.0,1.16284244]
[1742840001965,1.1e-07,88501.0,88500.0,1.03168244]
[1742840002173,1.1e-07,88501.0,88500.0,1.16276244]
[1742840003200,1.1e-07,88501.0,88500.0,1.06156044]
[1742840003523,1.1e-07,88501.0,88500.0,1.08110129]
[1742840003717,1.1e-07,88501.0,88500.0,1.07610129]
[1742840004161,1.1e-07,88501.0,88500.0,1.08210129]
[1742840004368,1.1e-07,88501.0,88500.0,1.07910129]
[1742840004590,1.1e-07,88501.0,88500.0,1.08410129]
[1742840006395,1.1e-07,88501.0,88500.0,1.07910129]
[1742840007620,1.1e-07,88501.0,88500.0,1.48770129]
[1742840010471,1.1e-07,88501.0,88500.0,1.71368929]
[1742840014161,1.1e-07,88501.0,88500.0,1.71402849]
[1742840019572,1.1e-07,88501.0,88500.0,2.01902849]
[1742840019766,1.1e-07,88501.0,88500.0,2.10142849]
[1742840020651,1.1e-07,88501.0,88500.0,2.09542849]
[1742840020864,1.1e-07,88501.0,88500.0,2.10099545]
[1742840021535,1.1e-07,88501.0,88500.0,2.09599545]
[1742840021798,1.1e-07,88501.0,88500.0,2.10199545]
[1742840024917,6e-07,88519.0,88501.0,0.01454085]
[1742840025126,0.00012374,88519.0,88518.0,0.58649664]
[1742840025327,0.00012374,88519.0,88518.0,1.12609664]
[1742840026153,0.00012374,88519.0,88518.0,1.66349664]
[1742840026359,7.4e-07,88519.0,88518.0,1.67803749]
[1742840026563,7.4e-07,88519.0,88518.0,1.70732129]
[1742840027855,7.4e-07,88519.0,88518.0,1.71232129]
[1742840028061,7.4e-07,88519.0,88518.0,1.72698561]
[1742840028509,7.4e-07,88519.0,88518.0,1.73298561]
[1742840028913,7.4e-07,88519.0,88518.0,1.73898561]
[1742840029397,7.4e-07,88519.0,88518.0,1.797032]
[1742840034919,6e-07,88549.0,88540.0,0.31768]
[1742840035122,3.9e-07,88560.0,88559.0,0.237129]
[1742840035319,0.00041101,88560.0,88559.0,1.01966664]
[1742840035520,0.00041101,88560.0,88559.0,0.88870664]
[1742840035725,0.00041101,88560.0,88559.0,1.0279455]
[1742840036587,0.12701101,88560.0,88559.0,0.8856945]
[1742840036990,0.12701101,88560.0,88559.0,1.0166545]
[1742840037200,0.12701101,88560.0,88559.0,1.0409383]
[1742840038153,0.12701101,88560.0,88559.0,1.0449383]
[1742840038580,0.12718061,88560.0,88559.0,0.9282693]
[1742840038778,0.12718061,88560.0,88559.0,1.0591893]
[1742840042730,0.12718061,88560.0,88559.0,1.0349055]
[1742840045853,0.12718061,88560.0,88559.0,1.0236145]
[1742840046103,0.12718061,88560.0,88559.0,1.0235745]
[1742840046348,0.12718061,88560.0,88559.0,1.01529564]
[1742840047373,0.12718061,88560.0,88559.0,0.88441564]
[1742840047580,0.12718061,88560.0,88559.0,1.01529564]
[1742840048796,0.12718061,88560.0,88559.0,0.88441564]
[1742840048999,0.12718061,88560.0,88559.0,1.01529564]
[1742840049931,0.12718061,88560.0,88559.0,1.01563464]
[1742840051106,0.12718061,88560.0,88559.0,0.47831464]
[1742840055518,0.04808061,88560.0,88559.0,0.48960564]
[1742840056283,0.04808061,88560.0,88559.0,0.47831464]
[1742840057669,0.04808061,88560.0,88559.0,0.48960564]
[1742840059158,0.04808061,88560.0,88559.0,0.47831464]
[1742840061227,0.04808061,88560.0,88559.0,0.34743464]
[1742840061442,0.04808061,88560.0,88559.0,0.007339]
[1742840061631,0.04808061,88560.0,88559.0,0.364017]
[1742840061985,0.05452663,88560.0,88559.0,0.364017]
[1742840062318,0.05452663,88560.0,88559.0,0.361017]
[1742840062769,0.05452663,88560.0,88559.0,0.362017]
[1742840062975,0.05452663,88560.0,88559.0,0.48756564]
[1742840063394,0.04808061,88560.0,88559.0,0.47227464]
[1742840063769,0.04808061,88560.0,88559.0,0.47527464]
[1742840070354,0.04808061,88560.0,88559.0,0.34443464]
[1742840070550,0.36050661,88560.0,88559.0,0.004339]
[1742840070948,0.36691501,88560.0,88559.0,0.004339]
[1742840071506,0.36691501,88560.0,88559.0,0.001339]
[1742840072007,0.36691501,88560.0,88559.0,0.000339]
[1742840073004,0.35562401,88560.0,88559.0,0.001339]
[1742840073220,0.36691501,88560.0,88559.0,0.001339]
[1742840073742,0.35562401,88560.0,88559.0,0.001339]
[1742840074612,0.36691501,88560.0,88559.0,0.001339]
[1742840091240,0.66691501,88560.0,88559.0,0.001339]
[1742840092211,0.66691501,88560.0,88559.0,0.000339]
[1742840092408,0.68145586,88560.0,88559.0,0.000339]
[1742840101645,0.7957135,88560.0,88559.0,0.000339]
[1742840103330,0.011296,88526.0,88522.0,0.53728]
[1742840103530,0.225909,88532.0,88528.0,0.225916]
[1742840103710,0.225909,88532.0,88529.0,0.225912]
[1742840103904,0.225907,88532.0,88530.0,0.22591]
[1742840104258,0.00630297,88531.0,88530.0,0.22591]
[1742840104617,0.225894,88538.0,88535.0,0.225898]
[1742840104813,0.2259,88535.0,88533.0,0.225904]
[1742840105019,0.2259,88535.0,88531.0,0.225909]
[1742840105180,0.3,88540.0,88531.0,0.11425764]
[1742840105377,0.225894,88537.0,88535.0,0.225899]
[1742840106478,0.225891,88538.0,88535.0,0.225898]
[1742840106655,0.225893,88538.0,88535.0,0.225898]
[1742840107014,0.225893,88538.0,88526.0,0.237218]
[1742840107015,0.3,88546.0,88543.0,0.225876]
[1742840107210,0.3,88546.0,88544.0,0.225874]
[1742840107211,0.30012311,88546.0,88544.0,0.225874]
[1742840107444,0.00012311,88546.0,88540.0,0.225886]
[1742840107642,0.225878,88543.0,88541.0,0.34014064]
[1742840107840,0.225878,88544.0,88541.0,0.34013964]
[1742840108264,0.225878,88544.0,88542.0,0.225881]
[1742840109037,0.225878,88543.0,88541.0,0.11425764]
[1742840109239,0.237171,88543.0,88541.0,0.11425764]
[1742840109512,0.225881,88542.0,88541.0,0.11425764]
[1742840109707,0.0062438,88542.0,88541.0,0.11425764]
[1742840110090,0.0062438,88542.0,88541.0,0.34013964]
[1742840110291,0.227876,88544.0,88541.0,0.34013964]
[1742840110456,0.00624526,88542.0,88541.0,0.34013964]
[1742840110651,0.227876,88544.0,88541.0,0.34013964]
[1742840110861,0.0062438,88543.0,88541.0,0.34013964]
[1742840111083,0.2321238,88543.0,88541.0,0.34013964]
[1742840111311,0.2321238,88543.0,88541.0,0.11425764]
[1742840112133,0.225881,88542.0,88541.0,0.11425764]
[1742840112375,0.30002729,88542.0,88541.0,0.11425764]
[1742840112567,0.08039155,88542.0,88541.0,0.11425764]
[1742840112742,0.30627255,88542.0,88541.0,0.11425764]
[1742840112945,0.23212626,88542.0,88541.0,0.11425764]
[1742840113344,0.00624526,88542.0,88541.0,0.34014164]
[1742840113564,0.00624526,88542.0,88541.0,0.11425764]
[1742840113809,0.23312626,88542.0,88541.0,0.11425764]
[1742840114009,0.00724526,88542.0,88541.0,0.34014164]
[1742840114139,0.00724526,88542.0,88541.0,0.13539028]
[1742840115563,0.00724526,88542.0,88541.0,0.36127428]
[1742840115759,0.00724526,88542.0,88541.0,0.13539028]
[1742840116186,0.23312626,88542.0,88541.0,0.13539028]
[1742840116390,0.00724526,88542.0,88541.0,0.13539028]
[1742840116606,0.00724526,88542.0,88541.0,0.36127428]
[1742840116833,0.00724526,88542.0,88541.0,0.13539028]
[1742840117036,0.23312626,88542.0,88541.0,0.13539028]
[1742840117869,0.00724526,88542.0,88541.0,0.13539028]
[1742840118251,0.23312626,88542.0,88541.0,0.13539028]
[1742840118676,0.00724526,88542.0,88541.0,0.13539028]
[1742840118900,0.00724526,88542.0,88541.0,0.36127428]
[1742840119305,0.00724526,88542.0,88541.0,0.43779608]
[1742840119510,0.00724526,88542.0,88541.0,0.36127428]
[1742840119511,0.001,88542.0,88541.0,0.36127428]
[1742840120147,0.00726485,88542.0,88541.0,0.36127428]
[1742840120890,0.001,88542.0,88541.0,0.36161388]
[1742840121450,0.001,88542.0,88541.0,0.36461388]
[1742840122005,0.00012311,88546.0,88545.0,0.225873]
[1742840122338,0.0063821,88546.0,88545.0,0.34013064]
[1742840122713,0.00012311,88546.0,88545.0,0.36126328]
[1742840122914,0.0063821,88546.0,88545.0,0.36126328]
[1742840123096,0.00012311,88546.0,88545.0,0.36126328]
[1742840123500,0.0063997,88546.0,88545.0,0.36126328]
[1742840123696,0.00012311,88546.0,88545.0,0.36126328]
[1742840123907,0.00640117,88546.0,88545.0,0.36126328]
[1742840127001,0.00640117,88546.0,88545.0,0.37255628]
[1742840127343,0.00012311,88546.0,88545.0,0.37255628]
[1742840128371,0.00012311,88546.0,88545.0,0.37555628]
[1742840128954,0.00012311,88546.0,88545.0,0.37455628]
[1742840129157,0.00012311,88546.0,88545.0,0.37555628]
[1742840129562,0.00012311,88546.0,88545.0,0.36426328]
[1742840130439,0.00012311,88546.0,88545.0,0.37555628]
[1742840144507,0.00012311,88546.0,88545.0,0.49490328]
[1742840144866,0.00012311,88546.0,88545.0,0.50619787]
[1742840145068,0.00012311,88546.0,88545.0,0.50653747]
[1742840146930,0.00012311,88546.0,88545.0,0.58733747]
[1742840148077,0.00012311,88546.0,88545.0,0.58533747]
[1742840148297,0.00012311,88546.0,88545.0,0.58433747]
[1742840148505,0.00012311,88546.0,88545.0,0.59033747]
[1742840148711,0.00012311,88546.0,88545.0,0.59433747]
[1742840151351,0.00012311,88546.0,88545.0,1.00293747]
[1742840152740,1.1e-07,88546.0,88545.0,1.39013426]
[1742840152941,1.1e-07,88546.0,88545.0,1.40467511]
[1742840153188,1.1e-07,88546.0,88545.0,1.27403511]
[1742840153336,1.1e-07,88546.0,88545.0,1.40463511]
[1742840154209,1.1e-07,88546.0,88545.0,1.39863511]
[1742840154376,1.1e-07,88546.0,88545.0,1.37750088]
[1742840154589,1.1e-07,88546.0,88545.0,1.38350088]
[1742840155169,1.1e-07,88546.0,88545.0,1.37950088]
[1742840155394,1.1e-07,88546.0,88545.0,1.38550088]
[1742840157810,1.1e-07,88546.0,88545.0,1.40655313]
[1742840158374,1.1e-07,88546.0,88545.0,1.27599313]
[1742840158587,1.1e-07,88546.0,88545.0,1.40655313]
[1742840163038,1.1e-07,88546.0,88545.0,1.38701228]
[1742840163230,1.1e-07,88546.0,88545.0,1.25645228]
[1742840163431,1.1e-07,88546.0,88545.0,1.38701228]
[1742840165441,1.1e-07,88546.0,88545.0,1.36592003]
[1742840167663,1.1e-07,88546.0,88545.0,1.38699997]
[1742840169173,1.1e-07,88546.0,88545.0,1.36592003]
[1742840169582,1.1e-07,88546.0,88545.0,1.23536003]
[1742840169796,1.1e-07,88546.0,88545.0,1.36588003]
[1742840170471,0.00016991,88546.0,88545.0,1.36588003]
[1742840172618,0.00016991,88546.0,88545.0,1.31888003]
[1742840172866,0.00016991,88546.0,88545.0,1.23808003]
[1742840175251,0.00016991,88546.0,88545.0,1.10756003]
[1742840175576,0.00016991,88546.0,88545.0,0.80756003]
[1742840175905,0.00016991,88546.0,88545.0,0.93808003]
[1742840176883,0.00016991,88546.0,88545.0,0.95919675]
[1742840177432,0.00016991,88546.0,88545.0,0.82867675]
[1742840177631,0.00016991,88546.0,88545.0,0.95919675]
[1742840180015,9.1e-07,88546.0,88545.0,0.95919675]
[1742840180223,9.1e-07,88546.0,88545.0,1.04079675]
[1742840180432,9.1e-07,88546.0,88545.0,1.04075675]
[1742840183303,9.1e-07,88546.0,88545.0,0.95915675]
[1742840185264,9.1e-07,88546.0,88545.0,0.93804003]
[1742840186448,9.1e-07,88546.0,88545.0,0.93204003]
[1742840186591,9.1e-07,88546.0,88545.0,0.93804003]
[1742840186788,9.1e-07,88546.0,88545.0,0.93204003]
[1742840187193,9.1e-07,88546.0,88545.0,0.93804003]
[1742840188514,9.1e-07,88546.0,88545.0,0.80756003]
[1742840188754,9.1e-07,88546.0,88545.0,0.93804003]
[1742840190143,9.1e-07,88546.0,88545.0,1.01654003]
[1742840190757,9.1e-07,88546.0,88545.0,0.80756003]
[1742840191001,9.1e-07,88546.0,88545.0,0.93804003]
[1742840191408,9.1e-07,88546.0,88545.0,0.93204003]
[1742840191639,9.1e-07,88546.0,88545.0,0.92604003]
[1742840191812,9.1e-07,88546.0,88545.0,0.93204003]
[1742840191956,9.1e-07,88546.0,88545.0,0.93804003]
[1742840195199,9.1e-07,88546.0,88545.0,0.93800003]
[1742840200686,9.1e-07,88546.0,88545.0,1.47516003]
[1742840202723,9.1e-07,88546.0,88545.0,1.49629477]
[1742840214142,9.1e-07,88546.0,88545.0,1.49625477]
[1742840216584,9.1e-07,88546.0,88545.0,1.47512003]
[1742840226671,9.1e-07,88546.0,88545.0,1.64472003]
[1742840226872,9.1e-07,88546.0,88545.0,1.77508003]
[1742840228950,9.1e-07,88546.0,88545.0,1.63872003]
[1742840229120,9.1e-07,88546.0,88545.0,1.76908003]
[1742840229325,9.1e-07,88546.0,88545.0,1.77508003]
[1742840229581,9.1e-07,88546.0,88545.0,1.64472003]
[1742840229752,9.1e-07,88546.0,88545.0,1.63872003]
[1742840229956,9.1e-07,88546.0,88545.0,1.64472003]
[1742840230402,9.1e-07,88546.0,88545.0,1.77508003]
[1742840231494,9.1e-07,88546.0,88545.0,1.77458003]
[1742840241496,9.1e-07,88546.0,88545.0,1.79412088]
[1742840241700,9.1e-07,88546.0,88545.0,1.91962088]
[1742840242015,9.1e-07,88546.0,88545.0,1.91958088]
[1742840242329,9.1e-07,88546.0,88545.0,1.91358088]
[1742840242530,9.1e-07,88546.0,88545.0,1.87148088]
[1742840242734,9.1e-07,88546.0,88545.0,1.79408088]
[1742840242949,9.1e-07,88546.0,88545.0,1.78808088]
[1742840243181,9.1e-07,88546.0,88545.0,1.76854003]
[1742840243382,9.1e-07,88546.0,88545.0,1.76254003]
[1742840243587,9.1e-07,88546.0,88545.0,1.76854003]
[1742840243819,9.1e-07,88546.0,88545.0,1.77454003]
[1742840245563,9.1e-07,88546.0,88545.0,1.64422003]
[1742840245765,9.1e-07,88546.0,88545.0,1.77454003]
[1742840251208,9.1e-07,88546.0,88545.0,1.79408088]
[1742840251325,9.1e-07,88546.0,88545.0,1.79404088]
[1742840252188,7e-07,88560.0,88559.0,0.237129]
[1742840252513,7e-07,88560.0,88559.0,1.05096343]
[1742840252514,9.9e-07,88560.0,88559.0,1.05096343]
[1742840253329,9.9e-07,88560.0,88559.0,1.05696343]
[1742840253992,9.9e-07,88560.0,88559.0,1.33528343]
[1742840254193,9.9e-07,88560.0,88559.0,1.46556343]
[1742840254391,0.00017079,88560.0,88559.0,1.47156343]
[1742840255027,0.00017079,88560.0,88559.0,1.34128343]
[1742840255402,0.00017079,88560.0,88559.0,1.04128343]
[1742840255601,0.00017079,88560.0,88559.0,1.17156343]
[1742840257869,0.00017079,88560.0,88559.0,1.17152343]
[1742840259093,0.00017079,88560.0,88559.0,1.13632664]
[1742840259294,0.00017079,88560.0,88559.0,1.00608664]
[1742840259494,0.00017079,88560.0,88559.0,1.13632664]
[1742840259945,0.00017079,88560.0,88559.0,0.72772664]
[1742840260363,0.01293787,88560.0,88559.0,0.35435764]
[1742840260554,0.36409679,88560.0,88559.0,0.2401]
[1742840260756,0.36409679,88560.0,88559.0,0.2461]
[1742840260911,0.13237346,88560.0,88559.0,0.2461]
[1742840261138,0.13237346,88560.0,88559.0,0.471938]
[1742840261340,0.13237346,88560.0,88559.0,0.459938]
[1742840261748,0.13237346,88560.0,88559.0,0.2461]
[1742840261966,0.13237346,88560.0,88559.0,0.471938]
[1742840262405,0.13237346,88560.0,88559.0,0.2461]
[1742840262614,0.13237346,88560.0,88559.0,0.471938]
[1742840263042,0.13237346,88560.0,88559.0,0.465938]
[1742840263257,0.13237346,88560.0,88559.0,0.459938]
[1742840263492,0.13237346,88560.0,88559.0,0.2371]
[1742840263665,0.13237346,88560.0,88559.0,0.2411]
[1742840264445,0.13237346,88560.0,88559.0,0.466938]
[1742840264645,0.13237346,88560.0,88559.0,0.2411]
[1742840265883,0.13237346,88560.0,88559.0,0.466938]
[1742840266045,0.13237346,88560.0,88559.0,0.2411]
[1742840266246,0.13237346,88560.0,88559.0,0.2414396]
[1742840267206,0.35820846,88560.0,88559.0,0.2414396]
[1742840267407,0.13237346,88560.0,88559.0,0.2414396]
[1742840268583,0.13237346,88560.0,88559.0,0.4672776]
[1742840269009,0.13237346,88560.0,88559.0,0.2414396]
[1742840269213,0.13237346,88560.0,88559.0,0.58153524]
[1742840269421,0.13237346,88560.0,88559.0,0.57453524]
[1742840269624,0.12697079,88560.0,88559.0,0.57753524]
[1742840269862,0.12697079,88560.0,88559.0,0.70977524]
[1742840270068,0.13230651,88560.0,88559.0,0.70977524]
[1742840270294,0.13230651,88560.0,88559.0,0.70677524]
[1742840270507,0.13230651,88560.0,88559.0,0.70977524]
[1742840272186,0.05490651,88560.0,88559.0,0.72106624]
[1742840272384,0.04957079,88560.0,88559.0,0.72106624]
[1742840274670,0.04957079,88560.0,88559.0,0.70977524]
[1742840278004,0.04957079,88560.0,88559.0,0.57953524]
[1742840278208,0.04957079,88560.0,88559.0,0.70973524]
[1742840281178,0.0549286,88560.0,88559.0,0.70973524]
[1742840282465,0.2807636,88560.0,88559.0,0.48389724]
[1742840282639,0.0549286,88560.0,88559.0,0.70973524]
[1742840282982,0.04957079,88560.0,88559.0,0.70973524]
[1742840283180,0.0549286,88560.0,88559.0,0.70973524]
[1742840288548,0.00017079,88560.0,88559.0,0.70973524]
[1742840289457,0.00017079,88560.0,88559.0,0.72102624]
[1742840290328,0.00017079,88560.0,88559.0,0.70973524]
[1742840295020,0.00017079,88560.0,88559.0,1.09612624]
[1742840295243,0.00017079,88560.0,88559.0,1.13135721]
[1742840295618,0.00017079,88560.0,88559.0,1.13131721]
[1742840295989,0.00017079,88560.0,88559.0,1.12831721]
[1742840296439,0.00017079,88560.0,88559.0,1.13431721]
[1742840296608,0.00017079,88560.0,88559.0,1.05921721]
[1742840297348,0.00017079,88560.0,88559.0,1.05721721]
[1742840297513,0.00017079,88560.0,88559.0,1.06121721]
[1742840300929,0.00017079,88560.0,88559.0,0.72598624]
[1742840302094,0.00017079,88560.0,88559.0,0.71469524]
[1742840302313,0.00017079,88560.0,88559.0,0.71465524]
[1742840303330,0.00017079,88560.0,88559.0,0.70865524]
[1742840303740,0.00017079,88560.0,88559.0,0.72294624]
[1742840311288,0.00017079,88560.0,88559.0,0.71165524]
[1742840311511,0.00017079,88560.0,88559.0,0.72294624]
[1742840312650,0.00017079,88560.0,88559.0,1.26010624]
[1742840312855,0.00017079,88560.0,88559.0,1.24881524]
[1742840313815,0.00017079,88560.0,88559.0,1.26010624]
[1742840314379,0.00017079,88560.0,88559.0,1.24881524]
[1742840314819,0.00017079,88560.0,88559.0,1.24877524]
[1742840317395,0.00017079,88560.0,88559.0,0.71161524]
[1742840317941,0.0055658,88560.0,88559.0,0.71161524]
[1742840318238,0.00017079,88560.0,88559.0,0.71161524]
[1742840318439,0.0055658,88560.0,88559.0,0.71161524]
[1742840318650,0.00017079,88560.0,88559.0,0.71161524]
[1742840318782,0.0055658,88560.0,88559.0,0.71161524]
[1742840321234,0.00017079,88560.0,88559.0,0.71161524]
[1742840321432,0.00555643,88560.0,88559.0,0.71161524]
[1742840321633,0.00017079,88560.0,88559.0,0.71161524]
[1742840321768,0.00555643,88560.0,88559.0,0.71161524]
[1742840321970,0.00017079,88560.0,88559.0,0.71161524]
[1742840322235,0.00555643,88560.0,88559.0,0.71161524]
[1742840322885,0.00017079,88560.0,88559.0,0.71161524]
[1742840323051,0.00555643,88560.0,88559.0,0.71161524]
[1742840323254,0.00017079,88560.0,88559.0,0.71161524]
[1742840323450,0.00555643,88560.0,88559.0,0.71161524]
[1742840325643,0.04559429,88560.0,88559.0,0.58153524]
[1742840325848,0.04559429,88560.0,88559.0,0.71161524]
[1742840327038,0.04559429,88560.0,88559.0,0.2414396]
[1742840327039,0.28888243,88560.0,88559.0,0.2414396]
[1742840327237,0.28888243,88560.0,88559.0,0.0073396]
[1742840328031,0.28888243,88560.0,88559.0,0.0003396]
[1742840328464,0.28888243,88560.0,88559.0,0.0033396]
[1742840328753,0.30004068,88560.0,88559.0,0.0033396]
[1742840329696,0.34944557,88560.0,88559.0,0.0033396]
[1742840329983,0.84490321,88560.0,88559.0,0.0033396]
[1742840330199,0.85944406,88560.0,88559.0,0.0033396]
[1742840330402,1.30634406,88560.0,88559.0,0.0033396]
[1742840330607,1.32839786,88560.0,88559.0,0.0033396]
[1742840330808,1.32839786,88560.0,88559.0,0.0003396]
[1742840331602,0.665064,88546.0,88545.0,0.0003396]
[1742840331798,0.6848496,88546.0,88545.0,0.0003396]
[1742840333978,0.6858496,88546.0,88545.0,0.0003396]
[1742840336032,1.1027496,88546.0,88545.0,0.0003396]
[1742840339919,1.21700724,88546.0,88545.0,0.0003396]
[1742840340165,1.35626488,88546.0,88545.0,0.0003396]
[1742840340409,1.38441347,88546.0,88545.0,0.0003396]
[1742840341319,1.38341347,88546.0,88545.0,0.0003396]
[1742840341550,1.38641347,88546.0,88545.0,0.0003396]
[1742840341723,1.38941347,88546.0,88545.0,0.0003396]
[1742840343695,1.38941347,88546.0,88545.0,6e-07]
[1742840344623,1.38641347,88546.0,88545.0,6e-07]
[1742840345052,1.38741347,88546.0,88545.0,6e-07]
[1742840345239,1.39241347,88546.0,88545.0,6e-07]
[1742840346845,1.52245347,88546.0,88545.0,6e-07]
[1742840350396,0.699075,88542.0,88541.0,2e-07]
[1742840350597,0.83281743,88542.0,88541.0,2e-07]
[1742840351185,0.83734343,88542.0,88541.0,2e-07]
[1742840351504,0.84034343,88542.0,88541.0,2e-07]
[1742840351942,0.84434343,88542.0,88541.0,2e-07]
[1742840352297,0.89374832,88542.0,88541.0,2e-07]
[1742840353606,1.31064832,88542.0,88541.0,2e-07]
[1742840358778,1.44068832,88542.0,88541.0,2e-07]
[1742840359975,1.44085812,88542.0,88541.0,2e-07]
[1742840361150,1.31081812,88542.0,88541.0,2e-07]
[1742840361351,1.44085812,88542.0,88541.0,2e-07]
[1742840363029,1.30581812,88542.0,88541.0,2e-07]
[1742840363237,1.29127727,88542.0,88541.0,2e-07]
[1742840363550,1.30581812,88542.0,88541.0,2e-07]
[1742840363935,1.29127727,88542.0,88541.0,2e-07]
[1742840364327,1.30581812,88542.0,88541.0,2e-07]
[1742840365916,1.03013448,88542.0,88541.0,2e-07]
[1742840366116,1.05513448,88542.0,88541.0,2e-07]
[1742840375125,1.03013448,88542.0,88541.0,2e-07]
[1742840375440,1.05513448,88542.0,88541.0,2e-07]
[1742840375798,1.03013448,88542.0,88541.0,2e-07]
[1742840378149,1.05513448,88542.0,88541.0,2e-07]
[1742840380027,1.03013448,88542.0,88541.0,2e-07]
[1742840392372,1.14439212,88542.0,88541.0,2e-07]
[1742840396527,1.16939212,88542.0,88541.0,2e-07]
[1742840399037,1.14439212,88542.0,88541.0,2e-07]
[1742840399213,1.16939212,88542.0,88541.0,2e-07]
[1742840401374,1.30039212,88542.0,88541.0,2e-07]
[1742840402310,1.30491812,88542.0,88541.0,2e-07]
[1742840402940,0.97071474,88542.0,88541.0,2e-07]
[1742840403142,0.96618874,88542.0,88541.0,2e-07]
[1742840403346,0.68072959,88542.0,88541.0,2e-07]
[1742840403953,0.98072959,88542.0,88541.0,2e-07]
[1742840419856,0.54928874,88542.0,88541.0,2e-07]
[1742840420059,0.54928874,88542.0,88541.0,0.0463002]
[1742840420257,0.24928874,88542.0,88541.0,0.0463002]
[1742840420457,0.32278051,88542.0,88541.0,0.0463002]